lending/lending_fUSD_20240507
["ID","MTS","AMOUNT","RATE_DAILY","PERIOD"]
[326554090,1715105606304,-2732.08,0.00021369,2]
[326554091,1715105606314,-840.9,0.00021369,2]
[326554092,1715105606325,-1050.6,0.00021369,2]
[326554093,1715105606335,-835.2,0.00021369,2]
[326554094,1715105606345,-3507.75,0.00021369,2]
[326554095,1715105606356,-2837.98,0.00021369,2]
[326554096,1715105606367,-2913.55,0.00021369,2]
[326554097,1715105606377,-500.0,0.00021369,2]
[326554098,1715105606387,-825.96,0.00021369,2]
[326554099,1715105606398,-2404.42,0.00021369,2]
[326554100,1715105606408,-1125.59,0.00021369,2]
[326554101,1715105606419,-156.90941448,0.00021369,2]
[326554102,1715105606429,-2326.09,0.00021369,2]
[326554103,1715105606440,-470.98053686,0.00021369,2]
[326554104,1715105606452,-678.75,0.00021369,2]
[326554105,1715105606462,-5312.39,0.00021369,2]
[326554106,1715105606473,-2929.62,0.00021369,2]
[326554107,1715105606484,-500.0,0.00021369,2]
[326554108,1715105606495,-2251.89,0.00021369,2]
[326554109,1715105606506,-500.0,0.00021369,2]
[326554110,1715105606520,-995.1,0.00021369,2]
[326554111,1715105606531,-1422.68,0.00021369,2]
[326554112,1715105606546,-500.0,0.00021369,2]
[326554113,1715105606556,-7636.26,0.00021369,2]
[326554114,1715105606567,-6856.81,0.00021369,2]
[326554115,1715105606579,-4930.24,0.00021369,2]
[326554116,1715105606590,-1988.76,0.00021369,2]
[326554117,1715105606602,-500.0,0.00021369,2]
[326554118,1715105606614,-500.0,0.00021369,2]
[326554119,1715105606625,-1192.04,0.00021369,2]
[326554120,1715105606635,-500.0,0.00021369,2]
[326554121,1715105606645,-2775.11,0.00021369,2]
[326554122,1715105606655,-500.0,0.00021369,2]
[326554123,1715105606665,-1155.41,0.00021369,2]
[326554124,1715105606675,-1157.16,0.00021369,2]
[326554125,1715105606685,-5007.09,0.00021369,2]
[326554126,1715105606695,-790.84,0.00021369,2]
[326554127,1715105606706,-29416.15,0.00021369,2]
[326554128,1715105606716,-500.0,0.00021369,2]
[326554129,1715105606727,-1981.97,0.00021369,2]
[326554130,1715105606737,-425.43793842,0.00021369,2]
[326554131,1715105606749,-500.0,0.00021369,2]
[326554132,1715105606759,-794.77,0.00021369,2]
[326554133,1715105606771,-645.4843777,0.00021369,2]
[326554134,1715105606781,-6716.37,0.00021369,2]
[326554135,1715105606792,-500.0,0.00021369,2]
[326554136,1715105606803,-1179.96,0.00021369,2]
[326554137,1715105606814,-500.0,0.00021369,2]
[326554138,1715105606825,-1794.84,0.00021369,2]
[326554139,1715105606836,-10692.6,0.00021369,2]
[326554140,1715105606848,-1100.13,0.00021369,2]
[326554141,1715105606858,-1634.78,0.00021369,2]
[326554142,1715105606869,-715.85,0.00021369,2]
[326554143,1715105606879,-5160.56,0.00021369,2]
[326554144,1715105606889,-1024.0,0.00021369,2]
[326554145,1715105606899,-562.05,0.00021369,2]
[326554146,1715105606910,-4446.43,0.00021369,2]
[326554147,1715105606920,-500.0,0.00021369,2]
[326554148,1715105606930,-500.0,0.00021369,2]
[326554149,1715105606940,-500.0,0.00021369,2]
[326554150,1715105606951,-500.0,0.00021369,2]
[326554151,1715105606961,-719.72,0.00021369,2]
[326554152,1715105606972,-1668.41,0.00021369,2]
[326554153,1715105606982,-2273.27,0.00021369,2]
[326554154,1715105606994,-2897.06,0.00021369,2]
[326554155,1715105607004,-2266.91,0.00021369,2]
[326554156,1715105607016,-591.11,0.00021369,2]
[326554157,1715105607027,-2711.45,0.00021369,2]
[326554158,1715105607039,-2878.06,0.00021369,2]
[326554159,1715105607050,-500.0,0.00021369,2]
[326554160,1715105607061,-2747.7,0.00021369,2]
[326554161,1715105607072,-680.44,0.00021369,2]
[326554162,1715105607083,-2730.02,0.00021369,2]
[326554163,1715105607093,-895.93,0.00021369,2]
[326554164,1715105607104,-1652.52,0.00021369,2]
[326554165,1715105607114,-549.07,0.00021369,2]
[326554166,1715105607124,-519.73,0.00021369,2]
[326554167,1715105607134,-500.0,0.00021369,2]
[326554168,1715105607144,-1304.96,0.00021369,2]
[326554169,1715105607154,-1412.02,0.00021369,2]
[326554170,1715105607164,-762.1,0.00021369,2]
[326554171,1715105607177,-2436.75,0.00021369,2]
[326554172,1715105607187,-3669.89,0.00021369,2]
[326554173,1715105607197,-9384.72,0.00021369,2]
[326554174,1715105607208,-500.0,0.00021369,2]
[326554175,1715105607218,-1593.18,0.00021369,2]
[326554176,1715105607228,-727.14,0.00021369,2]
[326554177,1715105607238,-1170.08,0.00021369,2]
[326554178,1715105607248,-1941.14,0.00021369,2]
[326554179,1715105607257,-541.81,0.00021369,2]
[326554180,1715105607267,-618.14,0.00021369,2]
[326554181,1715105607277,-631.46,0.00021369,2]
[326554182,1715105607287,-1921.54,0.00021369,2]
[326554183,1715105607297,-3197.79,0.00021369,2]
[326554184,1715105607308,-3099.44,0.00021369,2]
[326554185,1715105607318,-4560.48,0.00021369,2]
[326554186,1715105607329,-38643.67,0.00021369,2]
[326554187,1715105607339,-594.96,0.00021369,2]
[326554188,1715105607348,-1682.37,0.00021369,2]
[326554189,1715105607358,-1063.33,0.00021369,2]
[326554190,1715105607368,-3698.43,0.00021369,2]
[326554191,1715105607377,-808.36,0.00021369,2]
[326554192,1715105607388,-500.0,0.00021369,2]
[326554193,1715105607397,-500.0,0.00021369,2]
[326554194,1715105607407,-2956.08,0.00021369,2]
[326554195,1715105607417,-528.47,0.00021369,2]
[326554196,1715105607427,-17712.58,0.00021369,2]
[326554197,1715105607437,-3212.42,0.00021369,2]
[326554198,1715105607447,-1075.62,0.00021369,2]
[326554199,1715105607458,-684.43,0.00021369,2]
[326554200,1715105607468,-2995.55,0.00021369,2]
[326554201,1715105607478,-4441.97,0.00021369,2]
[326554202,1715105607489,-502.62,0.00021369,2]
[326554203,1715105607498,-1716.07,0.00021369,2]
[326554204,1715105607508,-8698.62,0.00021369,2]
[326554205,1715105607521,-517.61,0.00021369,2]
[326554206,1715105607532,-7988.89,0.00021369,2]
[326554207,1715105607547,-1169.68,0.00021369,2]
[326554208,1715105607558,-2365.32,0.00021369,2]
[326554209,1715105607569,-500.0,0.00021369,2]
[326554210,1715105607581,-1802.09,0.00021369,2]
[326554211,1715105607592,-747.34,0.00021369,2]
[326554212,1715105607614,-672.01,0.00021369,2]
[326554213,1715105607626,-2525.86,0.00021369,2]
[326554214,1715105607638,-2488.08,0.00021369,2]
[326554215,1715105607648,-500.0,0.00021369,2]
[326554216,1715105607659,-1274.76,0.00021369,2]
[326554217,1715105607669,-2196.88,0.00021369,2]
[326554218,1715105607680,-2680.71,0.00021369,2]
[326554219,1715105607691,-1924.04,0.00021369,2]
[326554220,1715105607701,-3541.95,0.00021369,2]
[326554221,1715105607713,-862.12,0.00021369,2]
[326554222,1715105607724,-1745.92,0.00021369,2]
[326554223,1715105607734,-2146.45,0.00021369,2]
[326554224,1715105607744,-500.0,0.00021369,2]
[326554225,1715105607755,-790.82240473,0.00021369,2]
[326554226,1715105608358,-2313.09759527,0.00021369,2]
[326554227,1715105608368,-500.0,0.00021369,2]
[326554228,1715105608380,-500.0,0.00021369,2]
[326554229,1715105608391,-756.1,0.00021369,2]
[326554230,1715105608403,-1873.65,0.00021369,2]
[326554231,1715105608414,-1454.37,0.00021369,2]
[326554232,1715105608425,-507.12,0.00021369,2]
[326554233,1715105608436,-1355.89,0.00021369,2]
[326554234,1715105608447,-857.95,0.00021369,2]
[326554235,1715105608458,-3339.3,0.00021369,2]
[326554236,1715105608469,-5966.98,0.00021369,2]
[326554237,1715105608482,-638.44,0.00021369,2]
[326554238,1715105608494,-1339.67,0.00021369,2]
[326554239,1715105608505,-2977.97,0.00021369,2]
[326554240,1715105608521,-2541.93,0.00021369,2]
[326554241,1715105608533,-2330.41,0.00021369,2]
[326554242,1715105608548,-708.04,0.00021369,2]
[326554243,1715105608560,-635.24,0.00021369,2]
[326554244,1715105608572,-602.67,0.00021369,2]
[326554245,1715105608585,-3811.26,0.00021369,2]
[326554246,1715105608597,-500.0,0.00021369,2]
[326554247,1715105608609,-1963.7,0.00021369,2]
[326554248,1715105608622,-1042.73,0.00021369,2]
[326554249,1715105608634,-2185.4865166,0.00021369,2]
[326554250,1715105608648,-675.9734834,0.00021369,2]
[326554251,1715105608660,-618.46,0.00021369,2]
[326554252,1715105608672,-3883.38,0.00021369,2]
[326554253,1715105608683,-4263.48,0.00021369,2]
[326554254,1715105608695,-2140.87,0.00021369,2]
[326554255,1715105608706,-2547.66,0.00021369,2]
[326554256,1715105608719,-2198.63,0.00021369,2]
[326554257,1715105608730,-709.65,0.00021369,2]
[326554258,1715105608742,-5121.23,0.00021369,2]
[326554259,1715105608753,-3237.33,0.00021369,2]
[326554260,1715105608764,-4095.92,0.00021369,2]
[326554261,1715105608775,-1080.84,0.00021369,2]
[326554262,1715105608786,-3075.75,0.00021369,2]
[326554263,1715105608797,-7176.66,0.00021369,2]
[326554264,1715105608807,-7598.04,0.00021369,2]
[326554265,1715105608818,-1138.76,0.00021369,2]
[326554266,1715105608829,-823.3,0.00021369,2]
[326554267,1715105608840,-1486.57,0.00021369,2]
[326554268,1715105608851,-2200.2,0.00021369,2]
[326554269,1715105608861,-207.64573131,0.0002137,2]
[326554270,1715105608875,-315.40426869,0.0002137,2]
[326554271,1715105608886,-1046.1,0.0002137,2]
[326554272,1715105608897,-1999.43,0.00021589,15]
[326554273,1715105608908,-902.13,0.00021643,2]
[326554274,1715105608919,-500.0,0.00021643,2]
[326554275,1715105608930,-500.0,0.00021643,2]
[326554276,1715105608940,-500.0,0.00021643,2]
[326554277,1715105608951,-964.26,0.00021643,2]
[326554278,1715105608962,-712.97,0.00021643,2]
[326554279,1715105608974,-500.0,0.00021643,2]
[326554280,1715105608985,-500.0,0.00021643,2]
[326554281,1715105608996,-759.45,0.00021643,2]
[326554282,1715105609007,-500.0,0.00021643,2]
[326554283,1715105609017,-500.0,0.00021643,2]
[326554284,1715105609028,-696.64,0.00021643,2]
[326554285,1715105609039,-500.0,0.00021643,2]
[326554286,1715105609050,-500.0,0.00021643,2]
[326554287,1715105609061,-749.43,0.00021643,2]
[326554288,1715105609073,-992.5,0.00021643,2]
[326554289,1715105609084,-500.0,0.00021643,2]
[326554290,1715105609097,-500.0,0.00021643,2]
[326554291,1715105609108,-500.0,0.00021643,2]
[326554292,1715105609119,-500.0,0.00021643,2]
[326554293,1715105609131,-500.0,0.00021643,2]
[326554294,1715105609143,-500.0,0.00021643,2]
[326554295,1715105609154,-1147.18,0.00021643,2]
[326554296,1715105609166,-500.0,0.00021643,2]
[326554297,1715105609177,-891.13,0.00021643,2]
[326554298,1715105609188,-652.58,0.00021643,2]
[326554299,1715105609200,-714.55,0.00021643,2]
[326554300,1715105609212,-1542.46,0.00021643,2]
[326554301,1715105609223,-590.41,0.00021643,2]
[326554302,1715105609235,-500.0,0.00021643,2]
[326554303,1715105609247,-957.15,0.00021643,2]
[326554304,1715105609258,-500.0,0.00021643,2]
[326554305,1715105609270,-500.0,0.00021643,2]
[326554306,1715105609281,-500.0,0.00021643,2]
[326554307,1715105609292,-625.01380407,0.00021643,2]
[326554308,1715105609307,-284.45619593,0.00021643,2]
[326554309,1715105609318,-600.34,0.00021643,2]
[326554310,1715105609329,-619.98,0.00021643,2]
[326554311,1715105609340,-500.0,0.00021643,2]
[326554312,1715105609352,-500.0,0.00021643,2]
[326554313,1715105609363,-512.88,0.00021643,2]
[326554314,1715105609376,-500.0,0.00021643,2]
[326554315,1715105609390,-500.0,0.00021643,2]
[326554316,1715105609402,-502.72,0.00021643,2]
[326554317,1715105609414,-500.0,0.00021643,2]
[326554318,1715105609426,-500.0,0.00021643,2]
[326554319,1715105609437,-608.4,0.00021643,2]
[326554320,1715105609448,-635.25,0.00021643,2]
[326554321,1715105609459,-744.29,0.00021643,2]
[326554322,1715105609470,-500.0,0.00021643,2]
[326554323,1715105609481,-1234.34,0.00021643,2]
[326554324,1715105609492,-775.54,0.00021643,2]
[326554325,1715105609504,-947.66,0.00021643,2]
[326554326,1715105609515,-996.04,0.00021643,2]
[326554327,1715105609529,-500.0,0.00021643,2]
[326554328,1715105609544,-675.56,0.00021643,2]
[326554329,1715105609555,-500.0,0.00021643,2]
[326554330,1715105609566,-404.10592493,0.00021643,2]
[326554331,1715105609578,-2194.28,0.00021643,2]
[326554332,1715105609589,-500.0,0.00021643,2]
[326554333,1715105609601,-500.0,0.00021643,2]
[326554334,1715105609614,-500.0,0.00021643,2]
[326554335,1715105609625,-603.04,0.00021643,2]
[326554336,1715105609636,-1659.65,0.00021643,2]
[326554337,1715105609647,-983.79,0.00021643,2]
[326554338,1715105609658,-880.18,0.00021643,2]
[326554339,1715105609670,-500.0,0.00021643,2]
[326554340,1715105609681,-563.93493626,0.00021643,2]
[326554341,1715105609696,-553.82506374,0.00021643,2]
[326554342,1715105609706,-277.19915108,0.00021643,2]
[326554343,1715105609718,-340.56084892,0.00021643,2]
[326554344,1715105609728,-500.0,0.00021643,2]
[326554345,1715105609742,-181.15559394,0.00021643,2]
[326554346,1715105609764,-365.0,0.00021643,2]
[326554347,1715105609776,-642.45514,0.00021643,2]
[326554348,1715105609788,-379.29926606,0.00021643,2]
[326554349,1715105609798,-666.96,0.00021643,2]
[326554350,1715105609807,-500.0,0.00021643,2]
[326554351,1715105609817,-2152.69,0.00021643,2]
[326554352,1715105609827,-896.53,0.00021643,2]
[326554353,1715105609837,-604.85,0.00021643,2]
[326554354,1715105609846,-500.0,0.00021643,2]
[326554355,1715105609857,-1115.16,0.00021643,2]
[326554356,1715105609867,-500.0,0.00021643,2]
[326554357,1715105609877,-500.0,0.00021643,2]
[326554358,1715105609887,-622.4,0.00021643,2]
[326554359,1715105609897,-500.0,0.00021643,2]
[326554360,1715105609908,-1145.35,0.00021643,2]
[326554361,1715105609919,-2862.89,0.00021643,2]
[326554362,1715105609928,-938.24,0.00021643,2]
[326554363,1715105609938,-917.06,0.00021643,2]
[326554364,1715105609948,-500.0,0.00021643,2]
[326554365,1715105609960,-501.99,0.00021643,2]
[326554366,1715105609970,-644.6320701,0.00021643,2]
[326554367,1715105609981,-599.9,0.00021643,2]
[326554368,1715105609992,-663.53,0.00021643,2]
[326554369,1715105610002,-783.84,0.00021643,2]
[326554370,1715105610013,-500.0,0.00021643,2]
[326554371,1715105610023,-500.0,0.00021643,2]
[326554372,1715105610033,-654.08,0.00021643,2]
[326554373,1715105610044,-679.25,0.00021643,2]
[326554374,1715105610054,-500.0,0.00021643,2]
[326554375,1715105610064,-720.33,0.00021643,2]
[326554376,1715105610074,-770.79,0.00021643,2]
[326554377,1715105610084,-1458.07,0.00021643,2]
[326554378,1715105610095,-1206.99,0.00021643,2]
[326554379,1715105610106,-729.57,0.00021643,2]
[326554380,1715105610116,-633.11,0.00021643,2]
[326554381,1715105610126,-500.0,0.00021643,2]
[326554382,1715105610138,-901.99,0.00021643,2]
[326554383,1715105610148,-500.0,0.00021643,2]
[326554384,1715105610159,-2291.75,0.00021643,2]
[326554385,1715105610169,-500.0,0.00021643,2]
[326554386,1715105610180,-786.7,0.00021643,2]
[326554387,1715105610190,-874.1,0.00021643,2]
[326554388,1715105610200,-1498.69,0.00021643,2]
[326554389,1715105610211,-1025.17,0.00021643,2]
[326554390,1715105610221,-500.0,0.00021643,2]
[326554391,1715105610231,-500.0,0.00021643,2]
[326554392,1715105610242,-1119.86,0.00021643,2]
[326554393,1715105610252,-866.47,0.00021643,2]
[326554394,1715105610263,-500.0,0.00021643,2]
[326554395,1715105610274,-500.0,0.00021643,2]
[326554396,1715105610285,-789.26,0.00021643,2]
[326554397,1715105610298,-500.0,0.00021643,2]
[326554398,1715105610309,-500.0,0.00021643,2]
[326554399,1715105610320,-500.0,0.00021643,2]
[326554400,1715105610330,-500.0,0.00021643,2]
[326554401,1715105610340,-1246.83,0.00021643,2]
[326554402,1715105610351,-602.95,0.00021643,2]
[326554403,1715105610361,-628.97,0.00021643,2]
[326554404,1715105610371,-578.54,0.00021643,2]
[326554405,1715105610380,-500.0,0.00021643,2]
[326554406,1715105610390,-74.10227802,0.00021643,2]
[326554407,1715105610404,-425.89772198,0.00021643,2]
[326554408,1715105610415,-850.08,0.00021643,2]
[326554409,1715105610425,-500.0,0.00021643,2]
[326554410,1715105610435,-857.63,0.00021643,2]
[326554411,1715105610445,-1237.72,0.00021643,2]
[326554412,1715105610456,-1373.85,0.00021643,2]
[326554413,1715105610465,-1020.3,0.00021643,2]
[326554414,1715105610475,-500.0,0.00021643,2]
[326554415,1715105610485,-514.16,0.00021643,2]
[326554416,1715105610495,-1646.07,0.00021643,2]
[326554417,1715105610504,-2048.87,0.00021643,2]
[326554418,1715105610518,-500.0,0.00021643,2]
[326554419,1715105610529,-539.47,0.00021643,2]
[326554420,1715105610545,-1036.58,0.00021643,2]
[326554421,1715105610554,-1252.57,0.00021643,2]
[326554422,1715105610564,-665.98,0.00021643,2]
[326554423,1715105610575,-6014.47,0.00021643,2]
[326554424,1715105610587,-500.0,0.00021643,2]
[326554425,1715105610597,-1013.84,0.00021643,2]
[326554426,1715105610608,-150.0,0.00021643,2]
[326554427,1715105610620,-500.0,0.00021643,2]
[326554428,1715105610631,-500.0,0.00021643,2]
[326554429,1715105610641,-11885.09,0.00021643,2]
[326554430,1715105610651,-1038.38,0.00021643,2]
[326554431,1715105610660,-531.24,0.00021643,2]
[326554432,1715105610671,-500.0,0.00021643,2]
[326554433,1715105610681,-519.72,0.00021643,2]
[326554434,1715105610691,-500.0,0.00021643,2]
[326554435,1715105610702,-500.0,0.00021643,2]
[326554436,1715105610712,-500.0,0.00021643,2]
[326554437,1715105610723,-500.0,0.00021643,2]
[326554438,1715105610733,-7456.46,0.00021643,2]
[326554439,1715105610743,-500.0,0.00021643,2]
[326554440,1715105610754,-8356.91,0.00021643,2]
[326554441,1715105610765,-1305.53,0.00021643,2]
[326554442,1715105610775,-785.17,0.00021643,2]
[326554443,1715105610785,-500.0,0.00021643,2]
[326554444,1715105610796,-958.49,0.00021643,2]
[326554445,1715105610806,-762.88,0.00021643,2]
[326554446,1715105610817,-2572.94,0.00021643,2]
[326554447,1715105610827,-494.79773333,0.00021643,2]
[326554448,1715105610838,-790.81,0.00021643,2]
[326554449,1715105610848,-513.88,0.00021643,2]
[326554450,1715105610859,-896.68,0.00021643,2]
[326554451,1715105610871,-500.0,0.00021643,2]
[326554452,1715105610881,-500.0,0.00021643,2]
[326554453,1715105610891,-2589.73,0.00021643,2]
[326554454,1715105610902,-544.84,0.00021643,2]
[326554455,1715105610912,-500.0,0.00021643,2]
[326554456,1715105610924,-1985.12,0.00021643,2]
[326554457,1715105610935,-500.0,0.00021643,2]
[326554458,1715105610945,-500.0,0.00021643,2]
[326554459,1715105610955,-1258.11,0.00021643,2]
[326554460,1715105610966,-1700.29,0.00021643,2]
[326554461,1715105610976,-4651.14,0.00021643,2]
[326554462,1715105610986,-500.0,0.00021643,2]
[326554463,1715105610996,-500.0,0.00021643,2]
[326554464,1715105611006,-500.0,0.00021643,2]
[326554465,1715105611016,-676.07,0.00021643,2]
[326554466,1715105611026,-959.08,0.00021643,2]
[326554467,1715105611037,-734.9,0.00021643,2]
[326554468,1715105611047,-500.0,0.00021643,2]
[326554469,1715105611057,-500.0,0.00021643,2]
[326554470,1715105611067,-698.7,0.00021643,2]
[326554471,1715105611077,-663.69,0.00021643,2]
[326554472,1715105611087,-660.1,0.00021643,2]
[326554473,1715105611098,-735.96,0.00021643,2]
[326554474,1715105611108,-8060.34,0.00021643,2]
[326554475,1715105611125,-1109.96,0.00021643,2]
[326554476,1715105611138,-2834.12,0.00021643,2]
[326554477,1715105611148,-20091.28,0.00021643,2]
[326554478,1715105611158,-14442.67,0.00021643,2]
[326554479,1715105611169,-998.22,0.00021643,2]
[326554480,1715105611179,-1229.5,0.00021643,2]
[326554481,1715105611189,-657.39,0.00021643,2]
[326554482,1715105611199,-500.0,0.00021643,2]
[326554483,1715105611210,-1555.88,0.00021643,2]
[326554484,1715105611221,-500.0,0.00021643,2]
[326554485,1715105611231,-2045.92,0.00021643,2]
[326554486,1715105611242,-733.48,0.00021643,2]
[326554487,1715105611253,-500.0,0.00021643,2]
[326554488,1715105611264,-2381.36,0.00021643,2]
[326554489,1715105611274,-44695.36,0.00021643,2]
[326554490,1715105611285,-1349.78,0.00021643,2]
[326554491,1715105611783,-531.17776676,0.00021643,2]
[326554492,1715105611800,-500.0,0.00021643,2]
[326554493,1715105611818,-467.73128708,0.00021643,2]
[326554494,1715105611831,-1025.11,0.00021643,2]
[326554495,1715105611841,-500.0,0.00021643,2]
[326554496,1715105611852,-1880.09,0.00021643,2]
[326554497,1715105611864,-1066.97,0.00021643,2]
[326554498,1715105611874,-1387.28,0.00021643,2]
[326554499,1715105611884,-500.0,0.00021643,2]
[326554500,1715105611894,-2096.8,0.00021643,2]
[326554501,1715105611905,-575.88,0.00021643,2]
[326554502,1715105611915,-500.0,0.00021643,2]
[326554503,1715105611926,-2732.08,0.00021643,2]
[326554504,1715105611936,-1050.6,0.00021643,2]
[326554505,1715105611947,-840.9,0.00021643,2]
[326554506,1715105611956,-835.2,0.00021643,2]
[326554507,1715105611967,-3507.75,0.00021643,2]
[326554508,1715105611976,-2837.98,0.00021643,2]
[326554509,1715105611986,-2913.55,0.00021643,2]
[326554510,1715105611996,-451.5493862,0.00021643,2]
[326554511,1715105612007,-2404.42,0.00021643,2]
[326554512,1715105612018,-1125.59,0.00021643,2]
[326554513,1715105612027,-825.96,0.00021643,2]
[326554514,1715105612037,-2326.09,0.00021643,2]
[326554515,1715105612047,-678.75,0.00021643,2]
[326554516,1715105612057,-5312.39,0.00021643,2]
[326554517,1715105612068,-2929.62,0.00021643,2]
[326554518,1715105612078,-500.0,0.00021643,2]
[326554519,1715105612089,-2251.89,0.00021643,2]
[326554520,1715105612099,-500.0,0.00021643,2]
[326554521,1715105612113,-995.1,0.00021643,2]
[326554522,1715105612123,-500.0,0.00021643,2]
[326554523,1715105612132,-7636.26,0.00021643,2]
[326554524,1715105612142,-6856.81,0.00021643,2]
[326554525,1715105612152,-4930.24,0.00021643,2]
[326554526,1715105612163,-1988.76,0.00021643,2]
[326554527,1715105612173,-500.0,0.00021643,2]
[326554528,1715105612183,-500.0,0.00021643,2]
[326554529,1715105612195,-1192.04,0.00021643,2]
[326554530,1715105612206,-365.5775268,0.00021643,2]
[326554531,1715105612216,-2775.11,0.00021643,2]
[326554532,1715105612226,-1422.68,0.00021643,2]
[326554533,1715105612236,-500.0,0.00021643,2]
[326554534,1715105612246,-1155.41,0.00021643,2]
[326554535,1715105612256,-1157.16,0.00021643,2]
[326554536,1715105612266,-5007.09,0.00021643,2]
[326554537,1715105612276,-790.84,0.00021643,2]
[326554538,1715105612286,-29416.15,0.00021643,2]
[326554539,1715105612296,-500.0,0.00021643,2]
[326554540,1715105612306,-1981.97,0.00021643,2]
[326554541,1715105612317,-161.55028195,0.00021643,2]
[326554542,1715105612327,-794.77,0.00021643,2]
[326554543,1715105612338,-6716.37,0.00021643,2]
[326554544,1715105612348,-500.0,0.00021643,2]
[326554545,1715105612360,-1179.96,0.00021643,2]
[326554546,1715105612371,-500.0,0.00021643,2]
[326554547,1715105612382,-1794.84,0.00021643,2]
[326554548,1715105612392,-10692.6,0.00021643,2]
[326554549,1715105612403,-1100.13,0.00021643,2]
[326554550,1715105612415,-1634.78,0.00021643,2]
[326554551,1715105612426,-715.85,0.00021643,2]
[326554552,1715105612436,-5160.56,0.00021643,2]
[326554553,1715105612447,-1024.0,0.00021643,2]
[326554554,1715105612456,-562.05,0.00021643,2]
[326554555,1715105612466,-4446.43,0.00021643,2]
[326554556,1715105612476,-500.0,0.00021643,2]
[326554557,1715105612486,-500.0,0.00021643,2]
[326554558,1715105612496,-500.0,0.00021643,2]
[326554559,1715105612505,-500.0,0.00021643,2]
[326554560,1715105612515,-719.72,0.00021643,2]
[326554561,1715105612528,-1668.41,0.00021643,2]
[326554562,1715105612542,-2273.27,0.00021643,2]
[326554563,1715105612554,-2897.06,0.00021643,2]
[326554564,1715105612564,-2266.91,0.00021643,2]
[326554565,1715105612575,-591.11,0.00021643,2]
[326554566,1715105612586,-2878.06,0.00021643,2]
[326554567,1715105612596,-500.0,0.00021643,2]
[326554568,1715105612606,-2747.7,0.00021643,2]
[326554569,1715105612617,-680.44,0.00021643,2]
[326554570,1715105612627,-2730.02,0.00021643,2]
[326554571,1715105612638,-895.93,0.00021643,2]
[326554572,1715105612648,-1652.52,0.00021643,2]
[326554573,1715105612658,-519.73,0.00021643,2]
[326554574,1715105612668,-2711.45,0.00021643,2]
[326554575,1715105612679,-500.0,0.00021643,2]
[326554576,1715105612690,-1304.96,0.00021643,2]
[326554577,1715105612700,-762.1,0.00021643,2]
[326554578,1715105612711,-1412.02,0.00021643,2]
[326554579,1715105612721,-549.07,0.00021643,2]
[326554580,1715105612731,-2436.75,0.00021643,2]
[326554581,1715105612742,-3669.89,0.00021643,2]
[326554582,1715105612753,-9384.72,0.00021643,2]
[326554583,1715105612763,-500.0,0.00021643,2]
[326554584,1715105612773,-1593.18,0.00021643,2]
[326554585,1715105612782,-727.14,0.00021643,2]
[326554586,1715105612792,-1170.08,0.00021643,2]
[326554587,1715105612802,-1941.14,0.00021643,2]
[326554588,1715105612812,-541.81,0.00021643,2]
[326554589,1715105612822,-618.14,0.00021643,2]